[Event "*** SCC Grand Prix: Titled Tuesday Blitz"]
[Site "Chess.com"]
[Date "2020.06.02"]
[Round "3"]
[White "dpopadic"]
[Black "Panterov"]
[Result "1/2-1/2"]
[WhiteElo "2322"]
[BlackElo "2121"]
[TimeControl "180+1"]
[EndTime "10:29:41 PDT"]
[Termination "Game drawn by stalemate"]

1. e4 {[%clk 0:03:00.9]} 1... d6 {[%clk 0:02:59.6]} 2. Nc3 {[%clk 0:03:00]} 2...
g6 {[%clk 0:03:00.5]} 3. f4 {[%clk 0:02:59.7]} 3... Bg7 {[%clk 0:03:01.4]} 4.
Nf3 {[%clk 0:03:00]} 4... c5 {[%clk 0:03:01.6]} 5. Bc4 {[%clk 0:02:59.9]} 5...
Nc6 {[%clk 0:03:01.5]} 6. d3 {[%clk 0:02:59.9]} 6... Nf6 {[%clk 0:03:01.7]} 7.
h3 {[%clk 0:02:59.1]} 7... O-O {[%clk 0:03:01.2]} 8. O-O {[%clk 0:02:59.1]} 8...
a6 {[%clk 0:03:01.6]} 9. a4 {[%clk 0:02:58.5]} 9... Nd4 {[%clk 0:02:56.4]} 10.
Nxd4 {[%clk 0:02:58]} 10... cxd4 {[%clk 0:02:57.3]} 11. Nd5 {[%clk 0:02:58.5]}
11... Nxd5 {[%clk 0:02:51.4]} 12. Bxd5 {[%clk 0:02:58.5]} 12... e6 {[%clk
0:02:51.7]} 13. Bb3 {[%clk 0:02:57.7]} 13... Bd7 {[%clk 0:02:47]} 14. Bd2 {[%clk
0:02:56.9]} 14... b5 {[%clk 0:02:46.1]} 15. axb5 {[%clk 0:02:54.5]} 15... axb5
{[%clk 0:02:47]} 16. Qf3 {[%clk 0:02:53.3]} 16... Bc6 {[%clk 0:02:43.2]} 17. Qg3
{[%clk 0:02:53.2]} 17... d5 {[%clk 0:02:41]} 18. e5 {[%clk 0:02:49.6]} 18...
Rxa1 {[%clk 0:02:31.2]} 19. Rxa1 {[%clk 0:02:48.4]} 19... f6 {[%clk 0:02:31.4]}
20. exf6 {[%clk 0:02:46.1]} 20... Qxf6 {[%clk 0:02:29.7]} 21. Re1 {[%clk
0:02:43.1]} 21... Bh6 {[%clk 0:02:20.8]} 22. Qg4 {[%clk 0:02:36]} 22... Bd7
{[%clk 0:02:14.9]} 23. Bxd5 {[%clk 0:02:20.1]} 23... Bxf4 {[%clk 0:01:45.5]} 24.
Bxf4 {[%clk 0:02:18.5]} 24... exd5 {[%clk 0:01:37.8]} 25. Qxd7 {[%clk
0:02:06.1]} 25... Qxf4 {[%clk 0:01:37.8]} 26. Qe6+ {[%clk 0:02:05.7]} 26... Kg7
{[%clk 0:01:24.5]} 27. Qe5+ {[%clk 0:02:02.5]} 27... Qxe5 {[%clk 0:01:19.7]} 28.
Rxe5 {[%clk 0:02:02.3]} 28... Rc8 {[%clk 0:01:20.6]} 29. Rxd5 {[%clk 0:02:01.7]}
29... Rxc2 {[%clk 0:01:21.5]} 30. Rxb5 {[%clk 0:02:00.7]} 30... Rd2 {[%clk
0:01:20.6]} 31. Rb3 {[%clk 0:02:00.4]} 31... Kf6 {[%clk 0:01:20.9]} 32. Kh2
{[%clk 0:02:00.5]} 32... Kf5 {[%clk 0:01:11.3]} 33. Kg3 {[%clk 0:01:57.7]} 33...
h5 {[%clk 0:01:08.8]} 34. Kf3 {[%clk 0:01:56.6]} 34... h4 {[%clk 0:01:09.1]} 35.
Rb5+ {[%clk 0:01:51]} 35... Kf6 {[%clk 0:01:08.9]} 36. Rb3 {[%clk 0:01:48.1]}
36... Kf5 {[%clk 0:01:08.1]} 37. g3 {[%clk 0:01:44.4]} 37... hxg3 {[%clk
0:00:54.8]} 38. Kxg3 {[%clk 0:01:43.9]} 38... g5 {[%clk 0:00:55.7]} 39. Kf3
{[%clk 0:01:42.5]} 39... Ke5 {[%clk 0:00:38.2]} 40. Rb5+ {[%clk 0:01:40.6]}
40... Kf6 {[%clk 0:00:38.3]} 41. Ke4 {[%clk 0:01:40.6]} 41... Rh2 {[%clk
0:00:37.9]} 42. Rb6+ {[%clk 0:01:39.8]} 42... Kg7 {[%clk 0:00:37.1]} 43. Kxd4
{[%clk 0:01:38.2]} 43... Rxh3 {[%clk 0:00:36.7]} 44. Ke4 {[%clk 0:01:38]} 44...
g4 {[%clk 0:00:33]} 45. Rd6 {[%clk 0:01:34.8]} 45... g3 {[%clk 0:00:32.9]} 46.
Kf3 {[%clk 0:01:34.7]} 46... Kf7 {[%clk 0:00:32.3]} 47. Kg2 {[%clk 0:01:32.3]}
47... Rh2+ {[%clk 0:00:31.6]} 48. Kxg3 {[%clk 0:01:32.6]} 48... Rxb2 {[%clk
0:00:32.5]} 49. Kf3 {[%clk 0:01:29.5]} 49... Ke7 {[%clk 0:00:30.6]} 50. Ra6
{[%clk 0:01:29.2]} 50... Rb4 {[%clk 0:00:29.6]} 51. Ke3 {[%clk 0:01:28.1]} 51...
Rh4 {[%clk 0:00:29.2]} 52. d4 {[%clk 0:01:26.2]} 52... Kd7 {[%clk 0:00:27.1]}
53. Kd3 {[%clk 0:01:26.1]} 53... Kc7 {[%clk 0:00:19.6]} 54. Kc4 {[%clk
0:01:25.7]} 54... Rh1 {[%clk 0:00:17.7]} 55. Kc5 {[%clk 0:01:24]} 55... Rc1+
{[%clk 0:00:11.8]} 56. Kd5 {[%clk 0:01:23.4]} 56... Rd1 {[%clk 0:00:12.7]} 57.
Ra7+ {[%clk 0:01:21]} 57... Kd8 {[%clk 0:00:11.7]} 58. Kc5 {[%clk 0:01:16.7]}
58... Rh1 {[%clk 0:00:10.6]} 59. d5 {[%clk 0:01:16.4]} 59... Rh6 {[%clk
0:00:09.8]} 60. Rg7 {[%clk 0:01:15.8]} 60... Kc8 {[%clk 0:00:09]} 61. Ra7 {[%clk
0:01:14.9]} 61... Kd8 {[%clk 0:00:09]} 62. Rg7 {[%clk 0:01:11.9]} 62... Kc8
{[%clk 0:00:09]} 63. Rg5 {[%clk 0:01:11.5]} 63... Kd7 {[%clk 0:00:07.9]} 64. Re5
{[%clk 0:01:10.3]} 64... Kc7 {[%clk 0:00:07.2]} 65. Re7+ {[%clk 0:01:09.5]}
65... Kd8 {[%clk 0:00:07.3]} 66. Ra7 {[%clk 0:01:06.7]} 66... Rg6 {[%clk
0:00:07.1]} 67. Rh7 {[%clk 0:01:04.2]} 67... Rf6 {[%clk 0:00:06.5]} 68. Rh4
{[%clk 0:01:03.1]} 68... Rg6 {[%clk 0:00:06.5]} 69. Re4 {[%clk 0:01:02.9]} 69...
Rf6 {[%clk 0:00:06.5]} 70. Re6 {[%clk 0:01:02.2]} 70... Rxe6 {[%clk 0:00:06.4]}
71. dxe6 {[%clk 0:01:02.4]} 71... Ke7 {[%clk 0:00:07.3]} 72. Kd5 {[%clk
0:01:02.5]} 72... Ke8 {[%clk 0:00:08.1]} 73. Ke5 {[%clk 0:01:02.2]} 73... Ke7
{[%clk 0:00:08.2]} 74. Kf5 {[%clk 0:01:02.4]} 74... Ke8 {[%clk 0:00:09.1]} 75.
Kf6 {[%clk 0:01:02.8]} 75... Kf8 {[%clk 0:00:08.7]} 76. e7+ {[%clk 0:01:02.5]}
76... Ke8 {[%clk 0:00:08.4]} 77. Ke6 {[%clk 0:01:03.4]} 1/2-1/2

[Event "*** SCC Grand Prix: Titled Tuesday Blitz"]
[Site "Chess.com"]
[Date "2020.06.02"]
[Round "3"]
[White "queen_iryna"]
[Black "pfalcon1949"]
[Result "0-1"]
[WhiteElo "2272"]
[BlackElo "2024"]
[TimeControl "180+1"]
[EndTime "10:29:43 PDT"]
[Termination "pfalcon1949 won on time"]

1. d4 {[%clk 0:03:00.9]} 1... Nf6 {[%clk 0:02:58.1]} 2. Bg5 {[%clk 0:03:00.4]}
2... Ne4 {[%clk 0:02:47.9]} 3. Bf4 {[%clk 0:02:59.9]} 3... d5 {[%clk 0:02:47.8]}
4. f3 {[%clk 0:02:57.8]} 4... Nf6 {[%clk 0:02:47.2]} 5. Nc3 {[%clk 0:02:57.1]}
5... e6 {[%clk 0:02:47]} 6. e4 {[%clk 0:02:56.6]} 6... Bb4 {[%clk 0:02:43.4]} 7.
e5 {[%clk 0:02:53.2]} 7... Nfd7 {[%clk 0:02:41.7]} 8. Be3 {[%clk 0:02:44.9]}
8... c5 {[%clk 0:02:36.7]} 9. f4 {[%clk 0:02:42.8]} 9... b6 {[%clk 0:02:34.2]}
10. Nf3 {[%clk 0:02:42.1]} 10... Nc6 {[%clk 0:02:33.6]} 11. Bb5 {[%clk
0:02:33.5]} 11... Ne7 {[%clk 0:02:23.3]} 12. O-O {[%clk 0:02:28.9]} 12... Bxc3
{[%clk 0:02:22.8]} 13. bxc3 {[%clk 0:02:28.3]} 13... c4 {[%clk 0:02:19.9]} 14.
Kh1 {[%clk 0:02:08.5]} 14... a6 {[%clk 0:02:14.9]} 15. Bxd7+ {[%clk 0:02:06.4]}
15... Bxd7 {[%clk 0:02:14.5]} 16. Bf2 {[%clk 0:02:01.3]} 16... Ng6 {[%clk
0:01:57.4]} 17. Bg3 {[%clk 0:01:41.3]} 17... h5 {[%clk 0:01:53.6]} 18. Qd2
{[%clk 0:01:32.8]} 18... h4 {[%clk 0:01:51.3]} 19. Bf2 {[%clk 0:01:31.5]} 19...
Qe7 {[%clk 0:01:35.3]} 20. a4 {[%clk 0:01:28.3]} 20... Rb8 {[%clk 0:01:27]} 21.
h3 {[%clk 0:01:03]} 21... Rh5 {[%clk 0:01:15.2]} 22. Nh2 {[%clk 0:01:00.1]}
22... Rf5 {[%clk 0:01:07.7]} 23. Be3 {[%clk 0:00:59.2]} 23... f6 {[%clk
0:00:56.6]} 24. Ng4 {[%clk 0:00:52]} 24... Bc6 {[%clk 0:00:55.2]} 25. Bg1 {[%clk
0:00:37.4]} 25... Kd7 {[%clk 0:00:53.6]} 26. exf6 {[%clk 0:00:26.6]} 26... gxf6
{[%clk 0:00:46.7]} 27. Nh6 {[%clk 0:00:26.3]} 27... Rh5 {[%clk 0:00:44]} 28. f5
{[%clk 0:00:26.5]} 28... Nf8 {[%clk 0:00:16.8]} 29. fxe6+ {[%clk 0:00:23.9]}
29... Nxe6 {[%clk 0:00:15.7]} 30. Nf5 {[%clk 0:00:21.9]} 30... Qh7 {[%clk
0:00:13.8]} 31. Ne3 {[%clk 0:00:17]} 31... Rg8 {[%clk 0:00:13.1]} 32. Rxf6
{[%clk 0:00:13.5]} 32... Qe4 {[%clk 0:00:12.3]} 33. Raf1 {[%clk 0:00:12.3]}
33... Kc8 {[%clk 0:00:09.5]} 34. Ng4 {[%clk 0:00:10.3]} 34... Bxa4 {[%clk
0:00:08.1]} 35. Nf2 {[%clk 0:00:08.5]} 35... Qxc2 {[%clk 0:00:07]} 36. Qxc2
{[%clk 0:00:08]} 36... Bxc2 {[%clk 0:00:07.2]} 37. Rxe6 {[%clk 0:00:08.4]} 37...
Bf5 {[%clk 0:00:06.9]} 38. Re4 {[%clk 0:00:07.7]} 38... Bxe4 {[%clk 0:00:05.8]}
39. Nxe4 {[%clk 0:00:06.9]} 39... dxe4 {[%clk 0:00:06.7]} 40. Re1 {[%clk
0:00:06.6]} 40... Rhg5 {[%clk 0:00:07.1]} 41. Re2 {[%clk 0:00:06.5]} 41... Rg3
{[%clk 0:00:07.4]} 42. Bh2 {[%clk 0:00:06.7]} 42... Rxc3 {[%clk 0:00:07.7]} 43.
Rxe4 {[%clk 0:00:07]} 43... Rc1+ {[%clk 0:00:08.2]} 44. Bg1 {[%clk 0:00:06.9]}
44... Rc2 {[%clk 0:00:08.7]} 45. Rxh4 {[%clk 0:00:06.6]} 45... Rgxg2 {[%clk
0:00:08.6]} 46. Rh8+ {[%clk 0:00:05.3]} 46... Kc7 {[%clk 0:00:08.1]} 47. Rh7+
{[%clk 0:00:05.5]} 47... Kc6 {[%clk 0:00:08.5]} 48. Rh6+ {[%clk 0:00:05.7]}
48... Kb5 {[%clk 0:00:09.3]} 49. d5 {[%clk 0:00:04.6]} 49... Rgd2 {[%clk
0:00:09.8]} 50. Rxb6+ {[%clk 0:00:04.4]} 50... Ka5 {[%clk 0:00:06]} 51. d6
{[%clk 0:00:04.6]} 51... Rc1 {[%clk 0:00:05.4]} 52. Rc6 {[%clk 0:00:04.5]} 52...
Rdd1 {[%clk 0:00:05.6]} 53. Kh2 {[%clk 0:00:02.9]} 53... Rxg1 {[%clk 0:00:06.1]}
54. Rc7 {[%clk 0:00:01.5]} 54... Rgd1 {[%clk 0:00:06.6]} 0-1

[Event "*** SCC Grand Prix: Titled Tuesday Blitz"]
[Site "Chess.com"]
[Date "2020.06.02"]
[Round "3"]
[White "tsvet2005"]
[Black "Supernotar"]
[Result "1-0"]
[WhiteElo "2545"]
[BlackElo "2697"]
[TimeControl "180+1"]
[EndTime "10:29:46 PDT"]
[Termination "tsvet2005 won by checkmate"]

1. d4 {[%clk 0:03:00.9]} 1... d5 {[%clk 0:02:52]} 2. c4 {[%clk 0:03:01.4]} 2...
dxc4 {[%clk 0:02:51.7]} 3. e3 {[%clk 0:03:01.5]} 3... Nf6 {[%clk 0:02:51.3]} 4.
Bxc4 {[%clk 0:03:01.4]} 4... e6 {[%clk 0:02:51.7]} 5. Nf3 {[%clk 0:03:01.6]}
5... a6 {[%clk 0:02:52.2]} 6. O-O {[%clk 0:03:02.1]} 6... b5 {[%clk 0:02:52.5]}
7. Be2 {[%clk 0:03:02.2]} 7... Bb7 {[%clk 0:02:52.4]} 8. a4 {[%clk 0:03:01.5]}
8... b4 {[%clk 0:02:52.4]} 9. Nbd2 {[%clk 0:02:59.7]} 9... Nbd7 {[%clk
0:02:52.2]} 10. a5 {[%clk 0:02:49.3]} 10... c5 {[%clk 0:02:48]} 11. Nc4 {[%clk
0:02:49.4]} 11... Qc7 {[%clk 0:02:47.5]} 12. b3 {[%clk 0:02:44.4]} 12... Be7
{[%clk 0:02:47.2]} 13. Bb2 {[%clk 0:02:43.9]} 13... O-O {[%clk 0:02:46.8]} 14.
Rc1 {[%clk 0:02:43.7]} 14... Rad8 {[%clk 0:02:46.7]} 15. Qc2 {[%clk 0:02:33.6]}
15... Be4 {[%clk 0:02:41.1]} 16. Bd3 {[%clk 0:02:23.6]} 16... Bxd3 {[%clk
0:02:34.9]} 17. Qxd3 {[%clk 0:02:21.3]} 17... cxd4 {[%clk 0:02:28.7]} 18. Bxd4
{[%clk 0:02:04.2]} 18... Qb7 {[%clk 0:02:15.1]} 19. Qb1 {[%clk 0:01:54.9]} 19...
h6 {[%clk 0:02:01.6]} 20. Rfd1 {[%clk 0:01:54.3]} 20... Nc5 {[%clk 0:01:54.3]}
21. Nfe5 {[%clk 0:01:46.4]} 21... Nd5 {[%clk 0:01:43.3]} 22. Qb2 {[%clk
0:01:31.4]} 22... Nc3 {[%clk 0:01:31.5]} 23. Bxc3 {[%clk 0:01:20.7]} 23... bxc3
{[%clk 0:01:26.4]} 24. Qxc3 {[%clk 0:01:20.3]} 24... Rxd1+ {[%clk 0:01:10.3]}
25. Rxd1 {[%clk 0:01:21.2]} 25... Qxb3 {[%clk 0:01:03.4]} 26. Qxb3 {[%clk
0:01:09.6]} 26... Nxb3 {[%clk 0:01:04.3]} 27. Rb1 {[%clk 0:00:59.5]} 27... Nc5
{[%clk 0:01:00.7]} 28. Nc6 {[%clk 0:00:58.8]} 28... Bf6 {[%clk 0:00:57.5]} 29.
Nb6 {[%clk 0:00:56.8]} 29... Kh7 {[%clk 0:00:47.7]} 30. g4 {[%clk 0:00:46.2]}
30... Kg6 {[%clk 0:00:29.2]} 31. h3 {[%clk 0:00:42.7]} 31... Ne4 {[%clk
0:00:23.4]} 32. Kg2 {[%clk 0:00:38.6]} 32... Bc3 {[%clk 0:00:20.5]} 33. Rc1
{[%clk 0:00:34.3]} 33... Bf6 {[%clk 0:00:17.4]} 34. Nb4 {[%clk 0:00:31.2]} 34...
Bc3 {[%clk 0:00:12.9]} 35. Nc6 {[%clk 0:00:31]} 35... Bf6 {[%clk 0:00:12.6]} 36.
f3 {[%clk 0:00:30.5]} 36... Nd6 {[%clk 0:00:10.8]} 37. f4 {[%clk 0:00:23.5]}
37... Nb7 {[%clk 0:00:10.1]} 38. Kf3 {[%clk 0:00:22.6]} 38... Bd8 {[%clk
0:00:07.6]} 39. Nd7 {[%clk 0:00:18.9]} 39... Re8 {[%clk 0:00:06.7]} 40. Nce5+
{[%clk 0:00:18.1]} 40... Kh7 {[%clk 0:00:06.9]} 41. Rc8 {[%clk 0:00:16.2]} 41...
Nd6 {[%clk 0:00:05.1]} 42. Ra8 {[%clk 0:00:15.9]} 42... Bxa5 {[%clk 0:00:05.2]}
43. Rxa6 {[%clk 0:00:14.8]} 43... Nb7 {[%clk 0:00:05.4]} 44. Ra7 {[%clk
0:00:15]} 44... f6 {[%clk 0:00:04]} 45. Nc6 {[%clk 0:00:14.8]} 45... Rd8 {[%clk
0:00:02.8]} 46. Nxd8 {[%clk 0:00:14.8]} 46... Nxd8 {[%clk 0:00:03.3]} 47. Rxa5
{[%clk 0:00:14.9]} 47... Nc6 {[%clk 0:00:02.9]} 48. Ra6 {[%clk 0:00:15.1]} 48...
Nd8 {[%clk 0:00:02.8]} 49. Nc5 {[%clk 0:00:14.9]} 49... e5 {[%clk 0:00:01.4]}
50. fxe5 {[%clk 0:00:15.8]} 50... fxe5 {[%clk 0:00:01.9]} 51. Ne6 {[%clk
0:00:16.7]} 51... Nf7 {[%clk 0:00:01.1]} 52. Nf8+ {[%clk 0:00:16.2]} 52... Kg8
{[%clk 0:00:01.2]} 53. Ng6 {[%clk 0:00:17.1]} 53... Kh7 {[%clk 0:00:01.6]} 54.
Ke4 {[%clk 0:00:17.2]} 54... Kg8 {[%clk 0:00:02.5]} 55. Nxe5 {[%clk 0:00:16.6]}
55... Nd8 {[%clk 0:00:02.5]} 56. Ra8 {[%clk 0:00:16.3]} 56... Kh7 {[%clk
0:00:02.2]} 57. Rxd8 {[%clk 0:00:17.2]} 57... h5 {[%clk 0:00:03.1]} 58. Rd7
{[%clk 0:00:17.8]} 58... h4 {[%clk 0:00:03.6]} 59. g5 {[%clk 0:00:17.4]} 59...
Kh8 {[%clk 0:00:03.6]} 60. g6 {[%clk 0:00:17.3]} 60... Kg8 {[%clk 0:00:04.5]}
61. Rd8# {[%clk 0:00:18.2]} 1-0

[Event "*** SCC Grand Prix: Titled Tuesday Blitz"]
[Site "Chess.com"]
[Date "2020.06.02"]
[Round "3"]
[White "HElissalt"]
[Black "MartinCerveny"]
[Result "1-0"]
[WhiteElo "2239"]
[BlackElo "2459"]
[TimeControl "180+1"]
[EndTime "10:29:46 PDT"]
[Termination "HElissalt won by resignation"]

1. d4 {[%clk 0:02:39.2]} 1... d6 {[%clk 0:02:59]} 2. e4 {[%clk 0:02:32.5]} 2...
Nf6 {[%clk 0:02:58.8]} 3. Nc3 {[%clk 0:02:31.9]} 3... e5 {[%clk 0:02:58.8]} 4.
dxe5 {[%clk 0:02:31.8]} 4... dxe5 {[%clk 0:02:58.8]} 5. Qxd8+ {[%clk 0:02:31.6]}
5... Kxd8 {[%clk 0:02:59.7]} 6. f3 {[%clk 0:02:30]} 6... c6 {[%clk 0:02:59.5]}
7. Be3 {[%clk 0:02:29.4]} 7... Kc7 {[%clk 0:02:59.2]} 8. O-O-O {[%clk
0:02:29.4]} 8... Be6 {[%clk 0:02:59.2]} 9. g3 {[%clk 0:02:26.7]} 9... Bb4 {[%clk
0:02:54.1]} 10. Nge2 {[%clk 0:02:15.9]} 10... Nbd7 {[%clk 0:02:50]} 11. h4
{[%clk 0:02:15]} 11... b5 {[%clk 0:02:40]} 12. Bh3 {[%clk 0:02:13.1]} 12... a5
{[%clk 0:02:37.8]} 13. Bxe6 {[%clk 0:02:12.1]} 13... fxe6 {[%clk 0:02:38.7]} 14.
g4 {[%clk 0:01:58.9]} 14... Rhf8 {[%clk 0:02:36.9]} 15. a3 {[%clk 0:01:50.5]}
15... Be7 {[%clk 0:02:31.5]} 16. Ng3 {[%clk 0:01:37.3]} 16... Ne8 {[%clk
0:02:28]} 17. Rhf1 {[%clk 0:01:33.2]} 17... Bxh4 {[%clk 0:02:18.3]} 18. Nge2
{[%clk 0:01:30.8]} 18... Be7 {[%clk 0:02:16.2]} 19. a4 {[%clk 0:01:29.7]} 19...
b4 {[%clk 0:02:14.1]} 20. Nb1 {[%clk 0:01:29.8]} 20... Nd6 {[%clk 0:02:03.7]}
21. Nd2 {[%clk 0:01:27.8]} 21... c5 {[%clk 0:01:51.3]} 22. b3 {[%clk 0:01:21.4]}
22... Kc6 {[%clk 0:01:51.1]} 23. c4 {[%clk 0:01:17.5]} 23... h6 {[%clk
0:01:38.3]} 24. Rh1 {[%clk 0:01:14.6]} 24... Rf7 {[%clk 0:01:36.6]} 25. Kc2
{[%clk 0:01:14]} 25... Raf8 {[%clk 0:01:35.9]} 26. Rh3 {[%clk 0:01:11.9]} 26...
Nb8 {[%clk 0:01:33.1]} 27. Nc1 {[%clk 0:01:12]} 27... Nb7 {[%clk 0:01:15.7]} 28.
Nd3 {[%clk 0:01:11.4]} 28... Bd6 {[%clk 0:01:15.8]} 29. Rg1 {[%clk 0:01:05.2]}
29... Kd7 {[%clk 0:01:03.4]} 30. g5 {[%clk 0:01:03.8]} 30... hxg5 {[%clk
0:01:03.1]} 31. Rxg5 {[%clk 0:01:03.6]} 31... Nc6 {[%clk 0:01:02.9]} 32. Rh7
{[%clk 0:00:58.2]} 32... Nd4+ {[%clk 0:00:57.4]} 33. Bxd4 {[%clk 0:00:57.3]}
33... exd4 {[%clk 0:00:58]} 34. Rgxg7 {[%clk 0:00:56.4]} 34... Nd8 {[%clk
0:00:37.2]} 35. Rxf7+ {[%clk 0:00:55]} 35... Nxf7 {[%clk 0:00:36.4]} 36. f4
{[%clk 0:00:53.5]} 36... Be7 {[%clk 0:00:19.6]} 37. Rxf7 {[%clk 0:00:50.9]}
37... Rxf7 {[%clk 0:00:19.4]} 38. Ne5+ {[%clk 0:00:51.1]} 38... Ke8 {[%clk
0:00:19.8]} 39. Nxf7 {[%clk 0:00:51.3]} 39... Kxf7 {[%clk 0:00:20.7]} 40. Kd3
{[%clk 0:00:50.4]} 40... Kg6 {[%clk 0:00:20.7]} 41. Ke2 {[%clk 0:00:49.9]} 41...
Kh5 {[%clk 0:00:20.2]} 42. Kf3 {[%clk 0:00:50]} 42... Bf6 {[%clk 0:00:20.2]} 43.
e5 {[%clk 0:00:50.2]} 43... Be7 {[%clk 0:00:20.3]} 44. Ne4 {[%clk 0:00:50.8]}
44... Kg6 {[%clk 0:00:20.5]} 45. Ng3 {[%clk 0:00:50.2]} 45... Kh6 {[%clk
0:00:18.8]} 46. Ke4 {[%clk 0:00:50]} 46... Kg6 {[%clk 0:00:18.8]} 47. f5+ {[%clk
0:00:49.5]} 47... exf5+ {[%clk 0:00:18.5]} 48. Nxf5 {[%clk 0:00:49.5]} 48... Bf8
{[%clk 0:00:16.3]} 49. Nh4+ {[%clk 0:00:39.3]} 49... Kh5 {[%clk 0:00:16]} 50.
Nf3 {[%clk 0:00:39.4]} 50... Kg4 {[%clk 0:00:16.1]} 51. Ne1 {[%clk 0:00:38.2]}
51... Kg3 {[%clk 0:00:15.8]} 52. Nd3 {[%clk 0:00:38.3]} 52... Kg4 {[%clk
0:00:15.9]} 53. e6 {[%clk 0:00:30.4]} 53... Be7 {[%clk 0:00:15.6]} 54. Nf4
{[%clk 0:00:28.5]} 54... Kg3 {[%clk 0:00:15.3]} 55. Nd5 {[%clk 0:00:28.4]} 55...
Bg5 {[%clk 0:00:15.1]} 56. e7 {[%clk 0:00:26.2]} 56... Bxe7 {[%clk 0:00:14.9]}
57. Nxe7 {[%clk 0:00:26.3]} 57... Kf2 {[%clk 0:00:15.8]} 58. Kd3 {[%clk
0:00:26.6]} 58... Ke1 {[%clk 0:00:15.9]} 59. Nf5 {[%clk 0:00:16.9]} 59... Kd1
{[%clk 0:00:16.8]} 60. Nd6 {[%clk 0:00:14.8]} 60... Kc1 {[%clk 0:00:16.9]} 61.
Nb7 {[%clk 0:00:14.9]} 61... Kb2 {[%clk 0:00:17.8]} 62. Nxc5 {[%clk 0:00:14.2]}
62... Ka3 {[%clk 0:00:18.7]} 63. Kxd4 {[%clk 0:00:13.6]} 63... Kb2 {[%clk
0:00:19.6]} 64. Kd5 {[%clk 0:00:13.6]} 1-0

[Event "*** SCC Grand Prix: Titled Tuesday Blitz"]
[Site "Chess.com"]
[Date "2020.06.02"]
[Round "3"]
[White "MightyGMpretender"]
[Black "Radzio1987"]
[Result "1-0"]
[WhiteElo "2591"]
[BlackElo "2894"]
[TimeControl "180+1"]
[EndTime "10:29:50 PDT"]
[Termination "MightyGMpretender won by resignation"]

1. Nf3 {[%clk 0:02:59.8]} 1... d5 {[%clk 0:02:59.3]} 2. d4 {[%clk 0:02:59.2]}
2... Bf5 {[%clk 0:02:55]} 3. Bf4 {[%clk 0:02:54.8]} 3... e6 {[%clk 0:02:54.1]}
4. e3 {[%clk 0:02:54.1]} 4... Nf6 {[%clk 0:02:52.5]} 5. Bd3 {[%clk 0:02:53.4]}
5... Bxd3 {[%clk 0:02:50.3]} 6. cxd3 {[%clk 0:02:53.1]} 6... Bd6 {[%clk
0:02:49.4]} 7. Bxd6 {[%clk 0:02:49.4]} 7... Qxd6 {[%clk 0:02:50.3]} 8. O-O
{[%clk 0:02:49.6]} 8... O-O {[%clk 0:02:50.3]} 9. Nc3 {[%clk 0:02:50.2]} 9...
Nbd7 {[%clk 0:02:49.4]} 10. Qc2 {[%clk 0:02:39.4]} 10... c6 {[%clk 0:02:48.6]}
11. b4 {[%clk 0:02:36.2]} 11... a6 {[%clk 0:02:35.7]} 12. Na4 {[%clk 0:02:32.4]}
12... b6 {[%clk 0:02:32.2]} 13. Rab1 {[%clk 0:02:26.6]} 13... Rfc8 {[%clk
0:02:31.1]} 14. Rfc1 {[%clk 0:02:25.8]} 14... h6 {[%clk 0:02:30.3]} 15. Qb2
{[%clk 0:02:16.4]} 15... Rab8 {[%clk 0:02:10.8]} 16. Rc3 {[%clk 0:02:11.5]}
16... Rc7 {[%clk 0:02:01.1]} 17. Rbc1 {[%clk 0:02:09.1]} 17... Rbc8 {[%clk
0:02:01.2]} 18. a3 {[%clk 0:02:07]} 18... b5 {[%clk 0:01:12.7]} 19. Nc5 {[%clk
0:02:04.7]} 19... Nxc5 {[%clk 0:01:13]} 20. Rxc5 {[%clk 0:02:01.4]} 20... Nd7
{[%clk 0:01:13.5]} 21. R5c3 {[%clk 0:01:55.8]} 21... f6 {[%clk 0:01:13.9]} 22.
Nd2 {[%clk 0:01:42.5]} 22... Nb6 {[%clk 0:01:11.1]} 23. R3c2 {[%clk 0:01:34.9]}
23... e5 {[%clk 0:01:09.2]} 24. Nb3 {[%clk 0:01:28.7]} 24... Na4 {[%clk
0:01:09.3]} 25. Qa1 {[%clk 0:01:27.3]} 25... Re7 {[%clk 0:01:09.8]} 26. Nc5
{[%clk 0:01:24.2]} 26... Nxc5 {[%clk 0:01:01.2]} 27. Rxc5 {[%clk 0:01:25.1]}
27... Rec7 {[%clk 0:00:53.7]} 28. a4 {[%clk 0:01:19]} 28... Kh7 {[%clk
0:00:48.3]} 29. g3 {[%clk 0:01:18]} 29... Qe6 {[%clk 0:00:45.6]} 30. R1c2 {[%clk
0:01:03.2]} 30... h5 {[%clk 0:00:39.5]} 31. h4 {[%clk 0:01:02.2]} 31... Qf5
{[%clk 0:00:36.3]} 32. Qc3 {[%clk 0:00:42]} 32... bxa4 {[%clk 0:00:35]} 33. Ra2
{[%clk 0:00:42]} 33... Rb7 {[%clk 0:00:26.9]} 34. Kg2 {[%clk 0:00:38.4]} 34...
e4 {[%clk 0:00:26.2]} 35. dxe4 {[%clk 0:00:24]} 35... Qxe4+ {[%clk 0:00:27.1]}
36. Kh2 {[%clk 0:00:23]} 36... Rb6 {[%clk 0:00:25.7]} 37. Rxa4 {[%clk
0:00:21.4]} 37... g5 {[%clk 0:00:24.2]} 38. Qc2 {[%clk 0:00:20.2]} 38... Qxc2
{[%clk 0:00:22.3]} 39. Rxc2 {[%clk 0:00:21.1]} 39... gxh4 {[%clk 0:00:22.4]} 40.
gxh4 {[%clk 0:00:22]} 40... Kg6 {[%clk 0:00:20.1]} 41. Rca2 {[%clk 0:00:21.6]}
41... Ra8 {[%clk 0:00:19.7]} 42. Kg3 {[%clk 0:00:21.4]} 42... Kf5 {[%clk
0:00:20]} 43. Kf3 {[%clk 0:00:21.9]} 43... Ke6 {[%clk 0:00:19.2]} 44. Kf4 {[%clk
0:00:22.3]} 44... Rg8 {[%clk 0:00:18.2]} 45. Rxa6 {[%clk 0:00:20.5]} 45... Rg4+
{[%clk 0:00:14.5]} 46. Kf3 {[%clk 0:00:20.8]} 46... Rxa6 {[%clk 0:00:13.5]} 47.
Rxa6 {[%clk 0:00:21.7]} 47... Kd7 {[%clk 0:00:13.9]} 48. b5 {[%clk 0:00:21.8]}
48... cxb5 {[%clk 0:00:13.9]} 49. Rxf6 {[%clk 0:00:21.8]} 49... Rxh4 {[%clk
0:00:14]} 50. Rb6 {[%clk 0:00:22.4]} 50... Rg4 {[%clk 0:00:07.3]} 51. Rxb5
{[%clk 0:00:21.9]} 51... Kc6 {[%clk 0:00:07.1]} 52. Rb8 {[%clk 0:00:20.6]} 52...
Rg7 {[%clk 0:00:04.2]} 53. Rh8 {[%clk 0:00:20.5]} 53... Rf7+ {[%clk 0:00:04.5]}
54. Kg3 {[%clk 0:00:20.9]} 54... Rf5 {[%clk 0:00:04.6]} 55. f3 {[%clk
0:00:19.2]} 55... Kb5 {[%clk 0:00:03.3]} 56. Rc8 {[%clk 0:00:18.8]} 56... Kb4
{[%clk 0:00:03.3]} 57. Rc5 {[%clk 0:00:18.8]} 57... Kb3 {[%clk 0:00:02.1]} 58.
e4 {[%clk 0:00:18.4]} 58... Rg5+ {[%clk 0:00:02.3]} 59. Kh4 {[%clk 0:00:18.9]}
1-0